Cogmind - Beta 10.2 @@@ ROGUE MODE // 2022.02.05 @ 11:21:49 Player: Kaz Result: Destroyed by G-47 Trooper with Particle Gun Performance ------------- Evolutions (1) 500 Regions Visited (2) 400 Robots Destroyed (39) 195 Value Destroyed (922) 922 Prototype IDs (0) 0 Alien Tech Used (0) 0 Bonus (28) 28 TOTAL SCORE: 2045 Bonus ------- High Alert Combat Kills 28 Cogmind --------- Core Integrity 0/400 Matter 132/300 Energy 100/100 System Corruption 0% Temperature Cool (10) Movement Rolling (100) Location -9/Materials Parts ------- > --- POWER (1) -------- (None) > --- PROPULSION (2) --- Compact Wheel > --- UTILITY (4) ------ Small Storage Unit Small Storage Unit System Shield > --- WEAPON (2) ------- Scythe > --- INVENTORY (8) ---- Light Ion Engine Improved Ion Engine Light Nuclear Core Peak State ------------ > --- POWER ------------ Light Ion Engine > --- PROPULSION ------- Compact Wheel Armored Wheel > --- UTILITY ---------- Small Storage Unit Light Armor Plating System Shield System Shield > --- WEAPON ----------- Heavy Assault Rifle Scythe > --- INVENTORY -------- Light Ion Engine Improved Ion Engine Light Nuclear Core Assault Rifle Light Assault Rifle Rocket Launcher [Rating: 18] Favorites ----------- Power Light Ion Engine Engine Light Ion Engine Propulsion Aluminum Leg Leg Aluminum Leg Wheel Wheel Flight Unit Flight Unit Utility Small Storage Unit Storage Small Storage Unit Hackware System Shield Protection Light Armor Plating Weapon Light Assault Rifle Ballistic Gun Light Assault Rifle Launcher Rocket Launcher Slashing Weapon Scythe Build | -11 -10 -9 ------- Run | Scr Mat Mat Slots Evolved 2 | . . 2 Power . | . . . Propulsion . | . . . Utility 2 | . . 2 Weapon . | . . . Parts Attached 33 | 7 8 18 Power 5 | 2 1 2 Engine 5 | 2 1 2 Core . | . . . Reactor . | . . . Propulsion 11 | 2 3 6 Treads . | . . . Leg 3 | . 2 1 Wheel 7 | 2 1 4 Hover . | . . . Flight 1 | . . 1 Utility 6 | 1 2 3 Device . | . . . Storage 3 | 1 1 1 Processor . | . . . Hackware 2 | . . 2 Protection 1 | . 1 . Artifact . | . . . Weapon 11 | 2 2 7 Energy Gun . | . . . Energy Cannon . | . . . Ballistic Gun 8 | 2 1 5 Ballistic Cannon . | . . . Launcher 2 | . 1 1 Special Weapon . | . . . Impact Weapon . | . . . Slashing Weapon 1 | . . 1 Piercing Weapon . | . . . Special Melee Weapon . | . . . Unidentified Prototypes . | . . . Parts Lost 17 | . 5 12 Power 2 | . 1 1 Propulsion 7 | . 2 5 Utility 2 | . . 2 Weapon 6 | . 2 4 Highest Loss Streak 4 | . 4 4 Average Slot Usage (%) 83 | . 85 81 Engine 7 | . 6 9 Leg 8 | . 14 1 Wheel 13 | . 11 14 Storage 14 | . 18 11 Hackware 8 | . . 17 Protection 5 | . 6 3 Ballistic Gun 15 | . 19 10 Launcher 5 | . 7 3 Slashing Weapon 3 | . . 7 Naked Turns . | . . . Heaviest Build 15 | 12 14 15 Greatest Support 28 | 10 20 28 Greatest Overweight (x) 4 | 1 2 4 Average Overweight (x) . | . . . Largest Inventory Capacity 8 | 6 6 8 Average Capacity 6 | 5 6 6 Most Carried 6 | 4 6 6 Average Carried 4 | 1 4 4 Final Capacity 8 | 6 6 8 Final Carried 6 | 2 6 3 Class Distribution -------------------- 71% | Mutant 28% | Hacker-Mutant Dominant Class ---------------- Mutant | -10/Materials Hacker-Mutant | -9/Materials Resources | -11 -10 -9 ----------- Run | Scr Mat Mat Matter Collected 942 | 218 325 399 Remotely . | . . . Salvage Created 1013 | . 496 517 Parts 77 | . 25 52 Haulers Intercepted 1 | . 1 . Recyclers Shooed 3 | . 3 . Parts Field Recycled . | . . . Retrieved Matter . | . . . Parts Self-Destructed . | . . . Prevented . | . . . Kills | -11 -10 -9 ------- Run | Scr Mat Mat Combat Hostiles Destroyed 29 | . 11 18 Melee 1 | . . 1 Guns 17 | . 9 8 AOE 11 | . 2 9 Classes Destroyed 7 | . 6 1 Worker 4 | . 1 3 Hauler 1 | . 1 . Recycler 2 | . 1 1 Watcher 3 | . 2 1 Swarmer 10 | . 3 7 Grunt 18 | . 8 10 Sentry 1 | . . 1 Best Kill Streak 14 | . 6 14 Combat Bots Only 9 | . 3 9 Max Kills in Single Turn 3 | . 2 3 Gunslinging . | . . . Exploded 3 | . 1 3 Melee 1 | . . 1 Uniques/NPCs Destroyed . | . . . Combat | -11 -10 -9 -------- Run | Scr Mat Mat Damage Taken 2275 | . 867 1408 Core 606 | . 206 400 Absorbed by Shields . | . . . Core Remaining (%) 58 | 100 17 . Volleys Fired 163 | . 83 80 Largest 2 | . 2 2 Hottest 53 | . 53 53 Shots Fired 208 | . 127 81 Gun 187 | . 117 70 Cannon . | . . . Launcher 21 | . 10 11 Special . | . . . Kinetic 187 | . 117 70 Thermal . | . . . Explosive 21 | . 10 11 Electromagnetic . | . . . Robot Hit Streak 13 | . 8 13 Robot Miss Streak 4 | . 3 4 Penetration Max . | . . . Secondary Targets 1 | . 1 . Max Gunslinging Chain 1 | . 1 . Shots Hit Robots 148 | . 84 64 Core Hits 72 | . 40 32 Critical Hits . | . . . Critical Kills . | . . . Critical Parts Destroyed . | . . . Melee Attacks 4 | . . 4 Impact . | . . . Slashing 4 | . . 4 Piercing . | . . . Sneak Attacks . | . . . Combat Hostiles . | . . . Follow-up Attacks . | . . . Damage Inflicted 2707 | . 1123 1584 Guns 1474 | . 779 695 Cannons . | . . . Explosions 1140 | . 341 799 Melee 90 | . . 90 Ramming 3 | . 3 . Kinetic 1474 | . 779 695 Thermal . | . . . Explosive 1140 | . 341 799 Electromagnetic . | . . . Impact . | . . . Slashing 90 | . . 90 Piercing . | . . . Highest Corruption . | . . . Average Corruption . | . . . Corruption Purged . | . . . Overload Shots . | . . . Overflow Damage 152 | . 29 123 Projectiles . | . . . Explosions 139 | . 29 110 Melee 13 | . . 13 Knockbacks . | . . . Impact . | . . . Kinetic . | . . . Secondary . | . . . Self-Inflicted Damage 224 | . 109 115 Shots 6 | . 3 3 Rammed . | . . . Targets Rammed 1 | . 1 . Kicked 1 | . 1 . Crushed . | . . . Highest Temperature 25 | . 25 12 Average Temperature 8 | . 9 3 Received Heat Transfer 825 | . 318 507 Siege Activations . | . . . Robots Corrupted . | . . . Combat Hostiles . | . . . Parts Fried . | . . . Impact Corruptions . | . . . Robots Melted . | . . . Combat Hostiles . | . . . Parts Melted . | . . . Heat Transferred . | . . . Parts Sabotaged . | . . . Parts Stolen . | . . . Parts Stripped . | . . . Power Chain Reactions . | . . . Missiles Intercepted . | . . . Alert | -11 -10 -9 ------- Run | Scr Mat Mat Peak Influence 521 | . 226 521 Initial 94 | . . 94 Average 167 | . 116 236 Maximum Alert Level 2 | . 1 2 Low Security (%) 63 | 100 72 51 Level 1 27 | . 27 30 Level 2 8 | . . 18 Level 3 . | . . . Level 4 . | . . . Level 5 . | . . . High Security . | . . . Max Security . | . . . Squads Dispatched 5 | . 3 2 Investigation 1 | . . 1 Extermination . | . . . Reinforcement 4 | . 3 1 Assault . | . . . Garrison . | . . . Intercept . | . . . Construction Impeded . | . . . Haulers Reinforced . | . . . Stealth | -11 -10 -9 --------- Run | Scr Mat Mat Distress Signals 4 | . . 4 Communications Jammed . | . . . Distress Signals . | . . . Times Spotted 59 | . 19 40 Peak Tracking Total 11 | . 5 11 Tactical Retreats 5 | . 1 4 Traps | -11 -10 -9 ------- Run | Scr Mat Mat Traps Triggered 2 | . 1 1 Indirectly . | . . . Trap Hack Attempts . | . . . Triggered . | . . . Disarmed . | . . . Reprogrammed . | . . . Reused . | . . . Traps Extracted . | . . . Installed . | . . . Triggered . | . . . Machines | -11 -10 -9 ---------- Run | Scr Mat Mat Machines Disabled 6 | . 4 2 Max in Single Turn 2 | . 2 1 Machines Sabotaged . | . . . Garrisons Compromised . | . . . Overloaded Fab Kills . | . . . Fab Network Shutdowns . | . . . Hacking | -11 -10 -9 --------- Run | Scr Mat Mat Machines Accessed 1 | . . 1 Terminals 1 | . . 1 Fabricators . | . . . Repair Stations . | . . . Recycling Units . | . . . Scanalyzers . | . . . Garrison Access . | . . . Total Hacks 1 | . . 1 Successful 1 | . . 1 Failed . | . . . Catastrophic . | . . . Database Lockouts . | . . . Manual . | . . . Terminals 1 | . . 1 Fabricators . | . . . Repair Stations . | . . . Recycling Units . | . . . Scanalyzers . | . . . Garrison Access . | . . . Terminal Hacks 1 | . . 1 Alert Level 1 | . . 1 Fabricator Hacks . | . . . Repair Station Hacks . | . . . Recycling Unit Hacks . | . . . Scanalyzer . | . . . Garrison Access Hacks . | . . . Unauthorized Hacks . | . . . Terminals . | . . . Fabricators . | . . . Repair Stations . | . . . Recycling Units . | . . . Scanalyzers . | . . . Garrison Access . | . . . Data Cores Recovered . | . . . Used . | . . . Hacking Detections . | . . . Full Trace Events . | . . . Feedback Events . | . . . Feedback Blocked . | . . . Robot Schematics Acquired . | . . . Robots Built . | . . . Matter . | . . . Time . | . . . Total Robot Build Rating . | . . . Part Schematics Acquired . | . . . Parts Built . | . . . Matter . | . . . Time . | . . . Total Part Build Rating . | . . . Parts Repaired . | . . . Time . | . . . Parts Recycled . | . . . Recycled Matter . | . . . Retrieved Matter . | . . . Retrieved Components . | . . . Parts Scanalyzed . | . . . Part Schematics Acquired . | . . . Parts Damaged . | . . . Bothacking | -11 -10 -9 ------------ Run | Scr Mat Mat Used RIF Installer . | . . . Robots Hacked . | . . . Non-combat . | . . . Combat . | . . . Robot Hacks Applied . | . . . Relay Couplers Released . | . . . Robots Rewired . | . . . Allies Hacked . | . . . Hacks Repelled . | . . . Allies | -11 -10 -9 -------- Run | Scr Mat Mat Total Allies . | . . . Largest Group . | . . . Highest-Rated Group . | . . . Highest-Rated Ally . | . . . Total Orders . | . . . Ally Attacks . | . . . Total Damage . | . . . Kills . | . . . Allies Corrupted . | . . . Allies Melted . | . . . Intel | -11 -10 -9 ------- Run | Scr Mat Mat Robot Analysis Total . | . . . Derelict Logs Recovered . | . . . Drone Launches . | . . . Drone Recoveries . | . . . Exploration | -11 -10 -9 ------------- Run | Scr Mat Mat Turns Passed 1181 | 42 601 538 Spaces Moved 651 | 32 349 270 Core 27 | 1 9 17 Treads . | . . . Legs 199 | . 185 14 Wheels 425 | 31 155 239 Hover . | . . . Flight . | . . . Fastest Speed 50 | 50 80 90 Average Speed 105 | 84 106 106 Slowest Speed 250 | 90 150 250 Overloaded Moves . | . . . Propulsion Burnouts . | . . . Robots Hopped . | . . . Cave-ins Triggered . | . . . Exploration Rate (%) 32 | 2 66 29 Regions Visited 2 Branch Regions . Pre-discovered Areas . | . . . Known Exits Taken . | . . . Unknown Exits Taken 2 | 1 1 . Scrap Searched . | . . . Spaces Dug . | . . . Terrain Destroyed 163 | . 54 109 Melee . | . . . Projectile . | . . . AOE 163 | . 54 109 Terrain Rammed . | . . . Walls Destroyed . | . . . Machines Disabled . | . . . Actions | -11 -10 -9 --------- Run | Scr Mat Mat Total 954 | 46 468 440 Wait 55 | . 9 46 Move 649 | 31 348 270 Hop . | . . . Pick Up 37 | 8 14 15 Fast Attach . | . . . Attach 24 | 6 5 13 Detach . | . . . Swap 9 | 1 3 5 Drop 12 | . 5 7 Fire 163 | . 83 80 Melee 4 | . . 4 Ram . | . . . Kick 1 | . 1 . Crush . | . . . Escape Stasis . | . . . Rewire . | . . . Trap . | . . . Miscellaneous . | . . . Route ------- -11/Scrapyard -10/Materials (discovered 4 exits: *Mat x3 / [*Min]) -9/Materials (discovered 1 exit: [*Min]) History --------- Turn | Location | Event 21 | -11/Scrapyard | Discovered new exit (range 15) 43 | -11/Scrapyard | Entered Materials 59 | -10/Materials | Discovered new exit (range 16) 296 | -10/Materials | Core integrity fell below 50% 317 | -10/Materials | Build established: Mutant 339 | -10/Materials | Discovered new exit (range 14) 340 | -10/Materials | Lost 4 parts (1p2n1w) 511 | -10/Materials | Discovered new exit (range 12) 597 | -10/Materials | Core integrity fell below 20% 637 | -10/Materials | Discovered new exit (range 5) 644 | -10/Materials | Entered another Materials area 644 | -9/Materials | Evolved 2 slots: Utility x2 930 | -9/Materials | Discovered new exit (range 7) 950 | -9/Materials | Build established: Hacker-Mutant 1056 | -9/Materials | Lost 4 parts (2n1u1w) 1083 | -9/Materials | Core integrity fell below 50% 1120 | -9/Materials | Destroyed 9 combat bots 1126 | -9/Materials | Lost 3 parts (2n1w) 1161 | -9/Materials | Core integrity fell below 20% 1182 | -9/Materials | Destroyed by G-47 Trooper with Particle Gun Last Messages --------------- 01160_ Acquired Com. Wheel. 01162_ Acquired 62 matter. 01162_ K-01 Serf collects debris. 01162_ U-05 Engineer lays Concrete. 01164_ Acquired Sml. Storage Unit. 01165_ U-05 Engineer builds a Wall. 01166_ K-01 Serf collects debris. 01168_ Aluminum Leg destroyed. 01168_ K-01 Serf collects debris. 01169_ U-05 Engineer lays Concrete. 01172_ Hvy. Assault Rifle destroyed. 01172_ K-01 Serf collects debris. 01174_ U-05 Engineer builds a Wall. 01175_ K-01 Serf collects debris. 01178_ U-05 Engineer lays Concrete. 01179_ K-01 Serf collects debris. 01179_ U-05 Engineer lays Concrete. 01180_ U-05 Engineer builds a Wall. 01181_ Lgt. Assault Rifle destroyed. 01182_ K-01 Serf collects debris. Map ----- +----------------------------------------------------+ | ?????##"""##?????????????????????????????????????? | | ????##"|||"##????????????????????????????????????? | | ????#"" ""#????????????????????????????????????? | | ????# #????????????????????????????????????? | | ????# < #????????????????????????????????????? | | ????# #????????????????????????????????????? | | ????# #????????????????????????????????????? | | ?????# #?????????????????????????????????????? | | ####### ########???????????????????????????????? | | # # #???????????????????????????????? | | = *+[ + #???????????????????????????????? | | [%=!# # #???????????????????????????????? | | * =[*=# # """ #???????????????????????????????? | | ###+### # """ #???????????????????????????????? | | ?##%### # """ #???????????????????????????????? | | ## = ########???????????????????????????????? | | # #?########?????????????????????????????? | | + ### #?????????????????????????????? | | # ! "## """ #?????????????????????????????? | | # T## """ #?????????????????????????????? | | # "## """ #######???????????????????????? | | + " " ### ## # ##??????????????????????? | | # "Y" ### ] #??????????????????????? | | # """ ## ######### ############# #????????? | | # u o [ u*%t= #????????? | | + w =! @Y=%!k #????????? | | ## =* ! g= rg #????????? | | ## ##+### #### ###########a #????????? | | ### ######## %= ##??????????????????????? | | # #?????# ! #######???????????????????????? | | #?????# #?????????????????????????????? | | # #?????# #?????????????????????????????? | | ### ##?????#=% # #????????????????????????????? | | ??# #??????# = #???????????????????????????? | | ??# #??????## #/# ##???????????????????????????? | | ??# #??????? # ###????????????????????????????? | | ??# #??????# ## #????????????????????????????? | | ??# #??????## == ????????????????????????????? | | ??# #???????# %! ???????????????????????????? | | ??# #?? ???? = [ ??????????????????????????? | | ??# #?? ????# ## #??????????????????????????? | | ??# #?? ????##### # #??????????????????????????? | | ??# #?? ?????????# ####??????????????????????????? | | ??# #?? ??????????##?????????????????????????????? | | ??#!#?? ?###########?????????????????????????????? | | ??#!#?? ?# #?????????????????????????????? | | ###+#?# ## #?????????????????????????????? | | *%#?# ## #?????????????????????????????? | | " #?# ## #?????????????????????????????? | | " #?# ## #?????????????????????????????? | +----------------------------------------------------+ Best States ------------- Heat Dissipation 28 Energy Generation 10 Energy Capacity 250 Matter Stores 393 Matter Capacity 400 Sight Range 16 Terrain Scan Density 10 Armor Coverage 150 Evasion (%) 44 Defensive Hacking 20 Item Schematics ----------------- None Robot Schematics ------------------ None Fabricated ------------ Nothing Alien Tech Used ----------------- None Achievements -------------- None Challenges ------------ None Game ------ Seed HardenedInsulationAutohacker Manual? 0 Play Time 00:16:49 Cumulative 24.9 hours Start 2022.02.05 @ 11:07:16 End 2022.02.05 @ 11:21:49 Sessions 1 Manual Loads 0 Difficulty Rogue Special Mode None Game No. 32 Rogue 29 Adventurer 3 Explorer 0 Win Type - Total 0 Types 0/0/0/0/0/0/0/0/0 Lore% 6 Gallery% 18 Achievement% 11 Wizard Run 0 Options --------- ASCII 0 Keyboard 0 Movement Mouse Keybinds 0 Fullscreen 1 Font 24/Proggy Map View 113x50 Tactical HUD 1 Map Filters NONE Filters NONE Steam 1 RUN: f712236d-dd90-4386-8176-836a0de0ab7d